fUSD/lending_fUSD_20240220
["ID","MTS","AMOUNT","RATE_DAILY","PERIOD"]
[314522961,1708403452343,-512.69992002,0.00036783,2]
[314522962,1708403452352,-500.0,0.00036783,2]
[314522963,1708403452361,-516.40151081,0.00036783,2]
[314522964,1708403452371,-500.0,0.00036783,2]
[314522965,1708403452380,-500.0,0.00036783,2]
[314522966,1708403452390,-500.0,0.00036783,2]
[314522967,1708403452399,-500.0,0.00036783,2]
[314522968,1708403452409,-738.22,0.00036783,2]
[314522969,1708403452418,-500.0,0.00036783,2]
[314522970,1708403452428,-500.0,0.00036783,2]
[314522971,1708403452437,-500.0,0.00036783,2]
[314522972,1708403452446,-675.82,0.00036783,2]
[314522973,1708403452456,-500.0,0.00036783,2]
[314522974,1708403452465,-783.63,0.00036783,2]
[314522975,1708403452474,-672.7,0.00036783,2]
[314522976,1708403452484,-500.0,0.00036783,2]
[314522977,1708403452494,-516.04652121,0.00036783,2]
[314522978,1708403452503,-500.0,0.00036783,2]
[314522979,1708403452512,-547.40342021,0.00036783,2]
[314522980,1708403452522,-500.0,0.00036783,2]
[314522981,1708403452531,-546.88,0.00036783,2]
[314522982,1708403452540,-533.30711076,0.00036783,2]
[314522983,1708403452549,-519.68150496,0.00036783,2]
[314522984,1708403452559,-500.0,0.00036783,2]
[314522985,1708403452569,-500.0,0.00036783,2]
[314522986,1708403452579,-500.0,0.00036783,2]
[314522987,1708403452589,-500.0,0.00036783,2]
[314522988,1708403452599,-500.0,0.00036783,2]
[314522989,1708403452608,-517.15018601,0.00036783,2]
[314522990,1708403452617,-500.0,0.00036783,2]
[314522991,1708403452628,-672.98,0.00036783,2]
[314522992,1708403452637,-500.0,0.00036783,2]
[314522993,1708403452646,-548.9112854,0.00036783,2]
[314522994,1708403452656,-500.0,0.00036783,2]
[314522995,1708403452665,-540.69,0.00036783,2]
[314522996,1708403452675,-500.0,0.00036783,2]
[314522997,1708403452684,-500.0,0.00036783,2]
[314522998,1708403452693,-622.81,0.00036783,2]
[314522999,1708403452703,-500.0,0.00036783,2]
[314523000,1708403452712,-659.14,0.00036783,2]
[314523001,1708403452721,-500.0,0.00036783,2]
[314523002,1708403452730,-500.0,0.00036783,2]
[314523003,1708403452739,-500.0,0.00036784,2]
[314523004,1708403452749,-500.0,0.00036784,2]
[314523005,1708403452758,-2783.27163432,0.00036798,2]
[314523006,1708403452767,-2783.27163424,0.00036798,2]
[314523007,1708403452776,-2783.27163424,0.00036798,2]
[314523008,1708403452786,-2783.27163424,0.00036798,2]
[314523009,1708403452795,-2783.27163424,0.00036798,2]
[314523010,1708403452804,-2783.27163424,0.00036798,2]
[314523011,1708403452813,-36031.81575407,0.000368,2]
[314523012,1708403452823,-16338.24,0.000368,7]
[314523013,1708403452832,-522.77462875,0.000368,2]
[314523014,1708403452842,-484.9236682,0.00036803,8]
[314523015,1708403452851,-302.94181632,0.00036806,2]
[314523016,1708403452860,-1256.22288882,0.00036807,8]
[314523017,1708403452870,-1697.94821657,0.0003681,9]
[314523018,1708403452880,-154.91993199,0.00036812,2]
[314523019,1708403452889,-599.07,0.00036819,2]
[314523020,1708403452899,-1697.94821657,0.00036845,9]
[314523021,1708403452908,-166.65,0.00036858,2]
[314523022,1708403452917,-153.34,0.00036872,2]
[314523023,1708403452927,-500.0,0.00036873,2]
[314523024,1708403452937,-500.0,0.00036873,2]
[314523025,1708403452946,-500.0,0.00036873,2]
[314523026,1708403452956,-500.0,0.00036873,2]
[314523027,1708403452965,-500.0,0.00036873,2]
[314523028,1708403452975,-1040.94,0.00036873,2]
[314523029,1708403452985,-529.1034871,0.00036873,2]
[314523030,1708403452994,-500.0,0.00036873,2]
[314523031,1708403453003,-500.0,0.00036873,2]
[314523032,1708403453012,-392.66407141,0.00036879,30]
[314523033,1708403453022,-1697.94821657,0.0003688,9]
[314523034,1708403453032,-1256.22288882,0.0003688,8]
[314523035,1708403453042,-484.9236682,0.0003688,8]
[314523036,1708403453051,-202.44388325,0.0003688,9]
[314523037,1708403453062,-36031.81575407,0.0003688,2]
[314523038,1708403453071,-1004.2900732,0.0003688,2]
[314523039,1708403453083,-1639.43862246,0.0003688,2]
[314523040,1708403453092,-204.23673105,0.0003688,2]
[314523041,1708403453102,-1928.29468035,0.0003688,2]
[314523042,1708403453111,-740.01307892,0.0003688,2]
[314523043,1708403453120,-150.0,0.00036888,2]
[314523044,1708403453130,-2000.0,0.00036891,2]
[314523045,1708403453139,-200.0,0.00036891,2]
[314523046,1708403453148,-200.0,0.00036891,2]
[314523047,1708403453157,-500.0,0.00036899,2]
[314523048,1708403453166,-332.44447546,0.00036899,2]
[314523049,1708403453175,-524.21898285,0.00036899,2]
[314523050,1708403453185,-486.31558791,0.000369,2]
[314523051,1708403453194,-3150227.07972523,0.000369,4]
[314523052,1708403453204,-513854.36343468,0.000369,3]
[314523053,1708403453214,-29224.62,0.000369,7]
[314523054,1708403453225,-1017.13,0.000369,7]
[314523055,1708403453236,-60265.87,0.000369,7]
[314523056,1708403453245,-622.11,0.00036905,2]
[314523057,1708403453255,-919.33,0.00036905,2]
[314523058,1708403453266,-1418.23,0.00036905,2]
[314523059,1708403453276,-500.0,0.00036905,2]
[314523060,1708403453286,-2047.31,0.00036905,2]
[314523061,1708403453296,-500.0,0.00036905,2]
[314523062,1708403453308,-8131.8,0.00036905,2]
[314523063,1708403453318,-1436.19,0.00036905,2]
[314523064,1708403453329,-1178.93,0.00036905,2]
[314523065,1708403453339,-4094.98,0.00036905,2]
[314523066,1708403453349,-2212.39,0.00036905,2]
[314523067,1708403453358,-1037.01,0.00036905,2]
[314523068,1708403453368,-500.0,0.00036905,2]
[314523069,1708403453377,-1024.15,0.00036905,2]
[314523070,1708403453387,-1704.89,0.00036905,2]
[314523071,1708403453397,-1363.57,0.00036905,2]
[314523072,1708403453407,-1562.41,0.00036905,2]
[314523073,1708403453416,-1279.01,0.00036905,2]
[314523074,1708403453426,-3653.45,0.00036905,2]
[314523075,1708403453435,-500.0,0.00036905,2]
[314523076,1708403453445,-687.16,0.00036905,2]
[314523077,1708403453456,-9529.11,0.00036905,2]
[314523078,1708403453465,-656.51,0.00036905,2]
[314523079,1708403453474,-1000.13,0.00036905,2]
[314523080,1708403453484,-1038.91,0.00036905,2]
[314523081,1708403453494,-819.02,0.00036905,2]
[314523082,1708403453503,-1050.24,0.00036906,2]
[314523083,1708403453513,-1512.44,0.00036906,2]
[314523084,1708403453523,-842.16,0.00036906,2]
[314523085,1708403453532,-1758.96,0.00036906,2]
[314523086,1708403453542,-3040.84,0.00036906,2]
[314523087,1708403453551,-1211.97,0.00036906,2]
[314523088,1708403453561,-1182.8,0.00036906,2]
[314523089,1708403453570,-990.01,0.00036906,2]
[314523090,1708403453584,-705.71,0.00036906,2]
[314523091,1708403453593,-5462.45,0.00036906,2]
[314523092,1708403453604,-1145.3,0.00036906,2]
[314523093,1708403453614,-1201.92,0.00036906,2]
[314523094,1708403453623,-1785.53,0.00036906,2]
[314523095,1708403453632,-2811.36,0.00036906,2]
[314523096,1708403453642,-2753.42,0.00036906,2]
[314523097,1708403453651,-500.0,0.00036906,2]
[314523098,1708403453660,-24866.61,0.00036906,2]
[314523099,1708403453669,-2161.44,0.00036906,2]
[314523100,1708403453678,-1229.84,0.00036906,2]
[314523101,1708403453688,-3625.42,0.00036906,2]
[314523102,1708403453697,-2195.6,0.00036906,2]
[314523103,1708403453706,-2855.23,0.00036906,2]
[314523104,1708403453715,-1426.18,0.00036906,2]
[314523105,1708403453724,-2009.65,0.00036906,2]
[314523106,1708403453734,-1169.5,0.00036906,2]
[314523107,1708403453743,-1118.61,0.00036906,2]
[314523108,1708403453752,-1265.71,0.00036906,2]
[314523109,1708403453761,-1772.69,0.00036906,2]
[314523110,1708403453771,-845.31,0.00036906,2]
[314523111,1708403453780,-4619.29,0.00036906,2]
[314523112,1708403453789,-10724.26,0.00036906,2]
[314523113,1708403453798,-1112.46,0.00036906,2]
[314523114,1708403453808,-1081.15,0.00036906,2]
[314523115,1708403453817,-3955.27,0.00036906,2]
[314523116,1708403453830,-1016.56,0.00036906,2]
[314523117,1708403453840,-4494.75,0.00036906,2]
[314523118,1708403453850,-1945.9,0.00036906,2]
[314523119,1708403453860,-1111.67,0.00036906,2]
[314523120,1708403453869,-500.0,0.00036906,2]
[314523121,1708403453878,-500.0,0.00036906,2]
[314523122,1708403453887,-500.0,0.00036906,2]
[314523123,1708403453897,-1307.47,0.00036906,2]
[314523124,1708403453906,-1498.82,0.00036906,2]
[314523125,1708403453915,-508.51,0.00036906,2]
[314523126,1708403453924,-1387.9338714,0.00036918,2]
[314523127,1708403453933,-150.0,0.00036928,2]
[314523128,1708403453943,-150.0,0.00036943,2]
[314523129,1708403453952,-158.0,0.00036944,5]
[314523130,1708403453961,-2000.0,0.00036946,2]
[314523131,1708403453971,-200.0,0.00036946,2]
[314523132,1708403453980,-2000.0,0.00036946,2]
[314523133,1708403453989,-200.0,0.00036946,2]
[314523134,1708403453998,-1167.3396544,0.00036955,2]
[314523135,1708403454007,-987.7489384,0.00036955,2]
[314523136,1708403454017,-8553.4676966,0.00036955,2]
[314523137,1708403454025,-7229.8699985,0.00036955,2]
[314523138,1708403454035,-14553.4836057,0.00036955,2]
[314523139,1708403454044,-12520.4962667,0.00036955,2]
[314523140,1708403454053,-195595.0730333,0.00036955,2]
[314523141,1708403454062,-168272.2465666,0.00036955,2]
[314523142,1708403454071,-34712.6257112,0.00036955,2]
[314523143,1708403454080,-29863.592278,0.00036955,2]
[314523144,1708403454089,-59794.4799223,0.00036955,2]
[314523145,1708403454098,-51441.7429476,0.00036955,2]
[314523146,1708403454107,-203.88043059,0.0003697,7]
[314523147,1708403454116,-200.0,0.0003697,7]
[314523148,1708403454125,-200.0,0.0003697,7]
[314523149,1708403454135,-200.0,0.0003697,7]
[314523150,1708403454144,-500.0,0.00036978,2]
[314523151,1708403454153,-151.0,0.00036979,2]
[314523152,1708403454162,-231.54285427,0.00036979,2]
[314523153,1708403454171,-392.6640714,0.00036979,30]
[314523154,1708403454180,-500.0,0.00036979,2]
[314523155,1708403454189,-500.0,0.00036979,2]
[314523156,1708403454198,-500.0,0.00036979,2]
[314523157,1708403454208,-500.0,0.00036979,2]
[314523158,1708403454219,-500.0,0.00036979,2]
[314523159,1708403454229,-500.0,0.00036979,2]
[314523160,1708403454239,-587.93427536,0.00036979,2]
[314523161,1708403454249,-300.0,0.00036979,2]
[314523162,1708403454258,-300.0,0.00036979,2]
[314523163,1708403454269,-300.0,0.00036979,2]
[314523164,1708403454278,-225.03661403,0.00036979,2]
[314523165,1708403454287,-6857074.3044946,0.0003698,2]
[314523166,1708403455032,-216341.12180925,0.0003698,2]
[314523167,1708403455045,-12662.48,0.0003698,2]
[314523168,1708403455089,-3954.363667,0.0003698,2]
[314523169,1708403455115,-638.77,0.00036468,2]
[314523170,1708403455124,-158.0679531,0.0003698,2]
[314523171,1708403455980,-270.76225108,0.0003618,2]
[314523172,1708403455992,-229.23774892,0.0003618,2]
[314523173,1708403456002,-638.77,0.00036742,2]
[314523174,1708403456011,-718.92639316,0.00036798,2]
[314523175,1708403456099,-2064.34524108,0.00036798,2]
[314523176,1708403456109,-794.63455892,0.0003698,2]
[314523177,1708403456495,-1498.1737105,0.0003698,2]
[314523178,1708403457152,-1803.25985443,0.0003688,2]
[314523179,1708403457162,-1190.65741985,0.0003698,2]
[314523180,1708403457174,-712.525,0.0003698,2]
[314523181,1708403457186,-703.7800001,0.0003698,2]
[314523182,1708403457198,-256.81548211,0.0003698,2]
[314523183,1708403457210,-736.45,0.0003698,2]
[314523184,1708403457222,-756.61936899,0.0003698,2]
[314523185,1708403457238,-27048.441326,0.0003698,2]
[314523186,1708403457249,-340.51000542,0.0003698,2]
[314523187,1708403457262,-325.39435214,0.0003698,2]
[314523188,1708403457274,-500.0,0.0003698,2]
[314523189,1708403457289,-363.33347999,0.0003698,2]
[314523190,1708403457309,-533.0,0.0003698,2]
[314523191,1708403457320,-4382.90922419,0.0003698,2]
[314523192,1708403457345,-303.50775472,0.0003698,2]
[314523193,1708403457356,-670.14303817,0.0003698,2]
[314523194,1708403457395,-5764.3911146,0.0003698,2]
[314523195,1708403458690,-823.06,0.00036164,2]
[314523196,1708403458699,-698.04,0.00036179,4]
[314523197,1708403458709,-500.0,0.00036467,2]
[314523198,1708403458718,-500.0,0.00036468,2]
[314523199,1708403458727,-500.0,0.00036741,2]
[314523200,1708403458736,-177.25472841,0.00036742,2]
[314523201,1708403458746,-2783.27163424,0.00036798,2]
[314523202,1708403458755,-9129.05184672,0.0003698,2]
[314523203,1708403458774,-16506.67146275,0.0003698,2]
[314523204,1708403458802,-561.24121014,0.0003698,2]
[314523205,1708403458813,-328.29726274,0.0003698,2]
[314523206,1708403458824,-534.16021158,0.0003698,2]
[314523207,1708403458836,-840.43553401,0.0003698,2]
[314523208,1708403458878,-444.1546217,0.0003698,2]
[314523209,1708403459243,-802.3847297,0.0003698,2]
[314523210,1708403459282,-74349.84022821,0.0003698,2]
[314523211,1708403459402,-640.21308701,0.0003698,2]
[314523212,1708403459443,-71484.04730222,0.0003698,2]
[314523213,1708403459454,-19508.48250045,0.0003698,2]
[314523218,1708404255057,7538.25899971,0.00025,8]
[314523219,1708404397883,150.0,2.57e-05,2]
[314523220,1708404397904,150.0,2.57e-05,2]
[314523221,1708404397925,114.23,2.57e-05,2]
[314523222,1708404405306,-268.6238487,0.00024999,2]
[314523223,1708404440097,-150.00196487,0.00024998,2]
[314523224,1708404451094,-47.69203513,0.00024998,2]
[314523225,1708404451116,-736.85994141,0.00024999,2]
[314523226,1708404451136,-172.65496424,0.00025,2]
[314523227,1708404549092,-933.3205,0.000249,2]
[314523228,1708404549130,-533.44674649,0.00025,2]
[314523229,1708404549150,-155.0,0.00027735,2]
[314523230,1708404558116,-634.22,0.00032203,2]
[314523231,1708404558139,-209.0,0.00032655,2]
[314523234,1708404602974,522.07,0.00033,5]
[314523235,1708404602993,283.83513234,0.00033,5]
[314523236,1708404617025,291.23368639,0.00022,4]
[314523239,1708404631854,-837.90315843,0.00032999,2]
[314523240,1708404631864,-815.85201348,0.00033,5]
[314523241,1708404631873,-4775.97614724,0.00033743,4]
[314523242,1708404631885,-311.06238185,0.00033743,4]
[314523243,1708404631896,-496.06335145,0.00033743,4]
[314523244,1708404631908,-711.85271356,0.00033743,4]
[314523245,1708404631919,-377.55697819,0.00033743,4]
[314523246,1708404631930,-790.43962363,0.00033743,4]
[314523247,1708404631945,-390.72,0.00033743,4]
[314523248,1708404631962,-6678.95498714,0.00033743,4]
[314523249,1708404631971,-1000.0,0.00033799,2]
[314523250,1708404631980,-154.10566754,0.00033851,2]
[314523251,1708404631990,-1455.87,0.00033951,2]
[314523252,1708404631999,-23900.0,0.00033983,2]
[314523253,1708404632009,-200.0,0.00033992,2]
[314523254,1708404632018,-150.0,0.00033992,2]
[314523255,1708404632027,-12087.87456666,0.00033992,2]
[314523256,1708404632039,-422.84951053,0.00033992,2]
[314523257,1708404632050,-1768.42882103,0.00033992,2]
[314523258,1708404632061,-4369.47710178,0.00033992,2]
[314523259,1708404632070,-250.0,0.00034019,2]
[314523260,1708404632079,-250.0,0.00034029,111]
[314523261,1708404632088,-200.0,0.00034029,2]
[314523262,1708404632097,-176.79,0.0003404,10]
[314523263,1708404632107,-500.0,0.00034046,2]
[314523264,1708404632116,-93.31508544,0.00034058,2]
[314523265,1708404632127,-64.24491456,0.00034058,2]
[314523266,1708404632136,-187.92,0.00034062,2]
[314523267,1708404632145,-3178.12,0.00034066,4]
[314523268,1708404632155,-590.4,0.00034071,2]
[314523269,1708404632164,-500.0,0.00034075,2]
[314523270,1708404632173,-500.0,0.00034076,2]
[314523271,1708404632182,-250.0,0.00034103,2]
[314523272,1708404632191,-200.0,0.00034187,2]
[314523273,1708404632201,-154.10566749,0.00034306,2]
[314523275,1708404632209,-187.32,0.00034333,2]
[314523277,1708404632218,-1074.82422832,0.00034335,2]
[314523278,1708404632227,-409.6,0.00034351,2]
[314523280,1708404632237,-182.95,0.00034351,2]
[314523282,1708404632246,-151.77,0.00034351,2]
[314523284,1708404632254,-181.52,0.00034351,2]
[314523286,1708404632264,-64.18603418,0.00034351,2]
[314523288,1708404632276,-666.93359433,0.00034351,2]
[314523290,1708404632287,-616.13037149,0.00034351,2]
[314523291,1708404632296,-2000.0,0.00034351,2]
[314523292,1708404632305,-256.95,0.00034351,2]
[314523293,1708404632315,-150.0,0.0003442,2]
[314523294,1708404632324,-499.99,0.00034463,2]
[314523295,1708404632334,-634.22,0.00034467,2]
[314523296,1708404632343,-1248.85,0.00034521,2]
[314523297,1708404632352,-209.0,0.00034608,6]
[314523298,1708404632362,-154.10566749,0.00034761,2]
[314523299,1708404632370,-2535.0,0.000348,3]
[314523300,1708404632379,-166.55,0.00034836,2]
[314523301,1708404632388,-6116.54365473,0.000349,3]
[314523302,1708404632400,-817.67329241,0.000349,3]
[314523303,1708404632426,-842.26534996,0.000349,3]
[314523304,1708404632438,-991.339575,0.000349,3]
[314523305,1708404632449,-1269.72511174,0.000349,3]
[314523306,1708404632499,-866.30438943,0.000349,3]
[314523307,1708404632511,-450.25,0.000349,3]
[314523310,1708404637809,-378.78134129,0.000349,3]
[314523311,1708404637967,-3732.11728544,0.000349,3]
[314523312,1708404637977,-14691.66,0.0003499,10]
[314523313,1708404637986,-327.34596973,0.00034998,4]
[314523314,1708404637995,-39811.7607394,0.00035,2]
[314523315,1708404638007,-21622.94215141,0.00035,2]
[314523316,1708404638016,-1473.710379,0.00035068,2]
[314523317,1708404638025,-150.0,0.0003518,20]
[314523318,1708404638035,-177.58,0.0003518,2]
[314523319,1708404638044,-151.0212031,0.00035198,6]
[314523320,1708404638053,-154.10566749,0.00035217,2]
[314523321,1708404638064,-419.31,0.00035342,2]
[314523322,1708404638073,-412.45,0.00035342,2]
[314523323,1708404638083,-419.31,0.00035342,2]
[314523324,1708404638093,-412.45,0.00035342,2]
[314523325,1708404638102,-425.82,0.00035342,2]
[314523326,1708404638111,-412.45,0.00035342,2]
[314523327,1708404638120,-412.45,0.00035342,2]
[314523328,1708404638130,-412.45,0.00035342,2]
[314523329,1708404638140,-503.74704771,0.00035347,2]
[314523330,1708404638149,-259.1,0.00035347,7]
[314523331,1708404638158,-239.73691467,0.00035389,2]
[314523332,1708404638168,-172.09,0.00035463,2]
[314523333,1708404638178,-1597.99,0.00035463,2]
[314523334,1708404638187,-159.05,0.00035463,2]
[314523335,1708404638197,-157.40371238,0.00035467,2]
[314523336,1708404638206,-259.1,0.00035484,7]
[314523337,1708404638215,-151.0212031,0.00035498,6]
[314523339,1708404638224,-166.55,0.00035532,2]
[314523341,1708404638234,-259.1,0.00035621,7]
[314523343,1708404638247,-1000.0,0.00035657,2]
[314523346,1708404638257,-154.10566749,0.00035672,2]
[314523348,1708404638268,-177.58,0.00035728,2]
[314523349,1708404638279,-259.1,0.00035758,7]
[314523351,1708404638289,-1248.85,0.00035798,2]
[314523353,1708404638298,-151.0212031,0.00035798,6]
[314523354,1708404638309,-2500.0,0.00035844,2]
[314523356,1708404638318,-1414.1356,0.00035853,2]
[314523378,1708404638574,-1000.0,0.00035853,2]
[314523380,1708404638585,-619.14841124,0.00035853,7]
[314523382,1708404638595,-2143.06252618,0.00035879,2]
[314523383,1708404638605,-259.1,0.00035895,7]
[314523385,1708404638616,-10801.43631313,0.00035944,2]
[314523387,1708404638629,-468.50164004,0.00035944,2]
[314523391,1708404638656,-9929.98204683,0.00035944,2]
[314523392,1708404638666,-155.0,0.0003595,4]
[314523394,1708404638675,-221.04989466,0.0003595,4]
[314523396,1708404638685,-500.0,0.00035951,2]
[314523398,1708404638694,-500.0,0.00035951,2]
[314523399,1708404638703,-500.0,0.00035951,2]
[314523401,1708404638713,-910.82,0.00035951,2]
[314523403,1708404638722,-304.01499009,0.00035951,2]
[314523405,1708404638731,-500.0,0.00035952,2]
[314523406,1708404638740,-500.0,0.00035952,2]
[314523408,1708404638749,-500.0,0.00035952,2]
[314523410,1708404638758,-500.0,0.00035952,2]
[314523412,1708404638767,-500.0,0.00035952,2]
[314523414,1708404638777,-532.61370098,0.00035952,2]
[314523416,1708404638785,-500.0,0.00035952,2]
[314523417,1708404638795,-500.0,0.00035952,2]
[314523419,1708404638803,-500.0,0.00035952,2]
[314523421,1708404638813,-500.0,0.00035952,2]
[314523423,1708404638822,-500.0,0.00035952,2]
[314523425,1708404638832,-500.0,0.00035952,2]
[314523426,1708404638840,-500.0,0.00035952,2]
[314523428,1708404638849,-500.0,0.00035952,2]
[314523430,1708404638858,-500.0,0.00035952,2]
[314523432,1708404638869,-500.0,0.00035952,2]
[314523434,1708404638878,-909.05,0.00035952,2]
[314523436,1708404638887,-500.0,0.00035952,2]
[314523437,1708404638896,-500.0,0.00035952,2]
[314523439,1708404638905,-500.0,0.00035952,2]
[314523441,1708404638914,-500.0,0.00035952,2]
[314523443,1708404638923,-172.36371254,0.00035952,2]
[314523445,1708404638932,-500.0,0.00035952,2]
[314523446,1708404638943,-2660.73,0.00035952,2]
[314523448,1708404638953,-1323.38,0.00035952,2]
[314523450,1708404638962,-500.0,0.00035952,2]
[314523452,1708404638971,-500.0,0.00035952,2]
[314523454,1708404638981,-500.0,0.00035952,2]
[314523456,1708404638990,-617.5,0.00035952,2]
[314523458,1708404638999,-736.89,0.00035952,2]
[314523459,1708404639008,-500.0,0.00035952,2]
[314523461,1708404639017,-1002.14,0.00035952,2]
[314523463,1708404639026,-500.0,0.00035952,2]
[314523465,1708404639037,-1539.09,0.00035952,2]
[314523467,1708404639046,-500.0,0.00035952,2]
[314523469,1708404639056,-500.0,0.00035952,2]
[314523471,1708404639064,-2459.94,0.00035952,2]
[314523472,1708404639073,-500.0,0.00035952,2]
[314523474,1708404639083,-500.0,0.00035952,2]
[314523476,1708404639092,-500.0,0.00035952,2]
[314523478,1708404639101,-1034.95,0.00035952,2]
[314523480,1708404639110,-21758.28,0.00035952,2]
[314523482,1708404639122,-500.0,0.00035952,2]
[314523484,1708404639131,-500.0,0.00035952,2]
[314523485,1708404639141,-500.0,0.00035952,2]
[314523487,1708404639150,-4779.65,0.00035952,2]
[314523489,1708404639159,-1076.11,0.00035952,2]
[314523491,1708404639169,-500.0,0.00035952,2]
[314523493,1708404639179,-500.0,0.00035952,2]
[314523495,1708404639188,-1051.68,0.00035952,2]
[314523497,1708404639197,-500.0,0.00035952,2]
[314523498,1708404639207,-544.35,0.00035952,2]
[314523500,1708404639217,-1240.95,0.00035952,2]
[314523502,1708404639227,-500.0,0.00035952,2]
[314523504,1708404639237,-500.0,0.00035952,2]
[314523506,1708404639246,-804.41,0.00035952,2]
[314523508,1708404639255,-500.0,0.00035952,2]
[314523510,1708404639265,-500.0,0.00035952,2]
[314523512,1708404639274,-500.0,0.00035952,2]
[314523514,1708404639283,-1791.4,0.00035952,2]
[314523515,1708404639293,-1107.49,0.00035952,2]
[314523517,1708404639303,-500.0,0.00035952,2]
[314523519,1708404639313,-500.0,0.00035952,2]
[314523521,1708404639323,-7115.33,0.00035952,2]
[314523523,1708404639332,-500.0,0.00035952,2]
[314523525,1708404639341,-1921.15,0.00035952,2]
[314523527,1708404639351,-500.0,0.00035952,2]
[314523528,1708404639360,-500.0,0.00035952,2]
[314523530,1708404639373,-739.65,0.00035952,2]
[314523532,1708404639382,-500.0,0.00035952,2]
[314523534,1708404639392,-314.66849773,0.00035952,2]
[314523536,1708404639402,-500.0,0.00035952,2]
[314523538,1708404639412,-500.0,0.00035952,2]
[314523540,1708404639422,-500.0,0.00035952,2]
[314523541,1708404639431,-500.0,0.00035952,2]
[314523543,1708404639442,-1256.67,0.00035952,2]
[314523545,1708404639452,-1247.91,0.00035952,2]
[314523547,1708404639462,-500.0,0.00035952,2]
[314523549,1708404639472,-973.4,0.00035952,2]
[314523551,1708404639482,-3583.1,0.00035952,2]
[314523553,1708404639491,-500.0,0.00035952,2]
[314523554,1708404639501,-1023.32,0.00035952,2]
[314523556,1708404639511,-1031.56,0.00035952,2]
[314523558,1708404639520,-946.01,0.00035952,2]
[314523560,1708404639530,-500.0,0.00035952,2]
[314523562,1708404639539,-504.43493839,0.00035952,2]
[314523564,1708404639549,-500.0,0.00035952,2]
[314523566,1708404639558,-907.38,0.00035952,2]
[314523567,1708404639568,-500.0,0.00035952,2]
[314523569,1708404639578,-1935.84,0.00035952,2]
[314523571,1708404639590,-889.49,0.00035952,2]
[314523573,1708404639600,-500.0,0.00035952,2]
[314523575,1708404639611,-500.0,0.00035952,2]
[314523577,1708404639623,-4041.88,0.00035952,2]
[314523579,1708404639633,-500.0,0.00035952,2]
[314523581,1708404639642,-896.14,0.00035952,2]
[314523582,1708404639651,-500.0,0.00035952,2]
[314523584,1708404639661,-500.0,0.00035952,2]
[314523586,1708404639671,-1491.78,0.00035952,2]
[314523588,1708404639681,-500.0,0.00035952,2]
[314523590,1708404639691,-616.37183302,0.00035952,2]
[314523592,1708404639700,-5783.7,0.00035952,2]
[314523594,1708404639710,-500.0,0.00035952,2]
[314523596,1708404639719,-500.0,0.00035952,2]
[314523597,1708404639729,-2884.05,0.00035952,2]
[314523599,1708404639739,-1119.13,0.00035952,2]
[314523601,1708404639748,-1193.12,0.00035952,2]
[314523603,1708404639758,-500.0,0.00035952,2]
[314523605,1708404639767,-500.0,0.00035952,2]
[314523607,1708404639777,-500.0,0.00035952,2]
[314523608,1708404639786,-1702.67,0.00035952,2]
[314523610,1708404639795,-500.0,0.00035952,2]
[314523612,1708404639804,-1367.11,0.00035952,2]
[314523614,1708404639814,-500.0,0.00035952,2]
[314523616,1708404639824,-500.0,0.00035952,2]
[314523618,1708404639833,-500.0,0.00035952,2]
[314523620,1708404639843,-500.0,0.00035952,2]